bitfinex/quotes_BTCUSD_20241205
["timestamp","ask_amount","ask_price","bid_price","bid_amount"]
[1733438017995,0.023,95896.0,95742.0,0.8352]
[1733438018201,0.023,95894.0,95742.0,0.8352]
[1733438018390,0.023,95892.0,95742.0,0.8352]
[1733438018674,0.00130406,95891.0,95742.0,0.8352]
[1733438018797,0.1032,95874.0,95681.0,0.0478]
[1733438018993,0.1032,95874.0,95699.0,0.054]
[1733438018994,0.173,95872.0,95699.0,0.054]
[1733438019201,0.0802,95874.0,95749.0,0.054]
[1733438019402,0.0802,95874.0,95750.0,2.9895]
[1733438020012,0.0801,95874.0,95750.0,2.9895]
[1733438020460,0.0801,95874.0,95768.0,0.054]
[1733438020788,0.0478,95914.0,95785.0,1.984]
[1733438021003,0.00130336,95913.0,95771.0,0.4295]
[1733438021192,0.0008626,95900.0,95781.0,1.513]
[1733438021432,0.0008626,95900.0,95768.0,4.73]
[1733438021433,0.04910349,95899.0,95760.0,1.3042]
[1733438021715,0.29548078,95899.0,95746.0,0.8352]
[1733438021945,0.0478,95873.0,95673.0,0.0469]
[1733438022164,0.0478,95851.0,95670.0,0.077]
[1733438022298,0.0478,95851.0,95699.0,0.04922929]
[1733438022299,0.0478,95839.0,95699.0,0.04922929]
[1733438022500,0.21630479,95838.0,95650.0,0.00101976]
[1733438022747,0.023,95836.0,95661.0,3.413]
[1733438022948,0.0478,95839.0,95661.0,3.413]
[1733438022949,0.023,95834.0,95661.0,3.413]
[1733438024079,0.0845,95833.0,95701.0,0.049]
[1733438024357,0.0845,95833.0,95684.0,6.2655]
[1733438024358,0.00130432,95832.0,95705.0,2.034]
[1733438024555,0.00740432,95832.0,95706.0,1.9445]
[1733438025177,0.00740432,95832.0,95684.0,3.276]
[1733438025178,0.023,95831.0,95673.0,0.0988]
[1733438025328,0.0708,95825.0,95673.0,0.0988]
[1733438025528,0.0913,95823.0,95673.0,0.0988]
[1733438025731,0.02430494,95822.0,95673.0,0.0988]
[1733438026135,0.33762494,95822.0,95673.0,0.0988]
[1733438026368,0.33762494,95822.0,95674.0,0.1355]
[1733438026543,0.31462494,95822.0,95676.0,0.049]
[1733438026741,0.31462494,95822.0,95674.0,0.584]
[1733438026742,0.31942,95822.0,95681.0,0.049]
[1733438026942,0.30838098,95822.0,95705.0,0.199]
[1733438027148,0.30838098,95822.0,95738.0,0.049]
[1733438027345,0.30838098,95822.0,95712.0,0.0469]
[1733438027556,0.30838098,95822.0,95721.0,0.15]
[1733438027754,0.0061,95822.0,95727.0,0.15]
[1733438027979,0.0061,95822.0,95735.0,0.054]
[1733438028320,0.0061,95822.0,95749.0,0.15]
[1733438028529,0.0061,95822.0,95750.0,5.4645]
[1733438028967,0.038,95888.0,95773.0,0.15]
[1733438029177,0.038,95888.0,95750.0,5.4645]
[1733438029389,0.0457,95887.0,95747.0,0.429]
[1733438030435,0.023,95886.0,95748.0,0.02146446]
[1733438031093,0.023,95879.0,95735.0,0.4295]
[1733438031264,0.0013041,95878.0,95735.0,0.4295]
[1733438031410,0.023,95877.0,95736.0,0.0915]
[1733438031609,0.00130397,95876.0,95736.0,0.0915]
[1733438031817,0.00130398,95875.0,95736.0,0.0915]
[1733438032032,0.02430398,95877.0,95736.0,0.0915]
[1733438032231,0.00130387,95876.0,95736.0,0.0915]
[1733438032443,0.00130396,95878.0,95736.0,0.0915]
[1733438032651,0.00130396,95878.0,95741.0,2.034]
[1733438032957,0.00130396,95878.0,95733.0,1.0445]
[1733438032958,0.023,95861.0,95724.0,4.5085]
[1733438033592,0.023,95861.0,95726.0,0.15]
[1733438033858,0.0457,95880.0,95724.0,4.5085]
[1733438033859,0.0457,95880.0,95733.0,0.049]
[1733438034180,0.001724,95840.0,95745.0,2.034]
[1733438034356,0.001724,95840.0,95746.0,1.325]
[1733438034597,0.001664,95840.0,95725.0,0.0964]
[1733438034799,0.0457,95811.0,95630.0,0.15]
[1733438035156,0.0457,95811.0,95661.0,0.0964]
[1733438035437,0.0457,95811.0,95733.0,0.085036]
[1733438035831,0.023,95810.0,95733.0,0.085036]
[1733438036707,0.00494,95792.0,95733.0,0.085036]
[1733438036926,0.023,95790.0,95733.0,0.085036]
[1733438037134,0.15,95784.0,95500.0,0.94117694]
[1733438037308,0.023,95775.0,95620.0,3.408]
[1733438037506,0.023,95771.0,95621.0,4.90830136]
[1733438037737,0.15,95760.0,95621.0,4.9065]
[1733438037912,0.15,95746.0,95608.0,0.8995]
[1733438038100,0.023,95748.0,95608.0,0.8995]
[1733438038101,0.0457,95730.0,95608.0,0.8995]
[1733438038304,0.05213864,95698.0,95589.0,2.092]
[1733438038669,0.0457,95687.0,95514.0,1.3285]
[1733438038859,0.15,95684.0,95540.0,0.15]
[1733438039061,0.0457,95682.0,95610.0,0.0008633]
[1733438039291,0.6607,95697.0,95610.0,0.0008633]
[1733438039292,0.15,95666.0,95610.0,0.0008633]
[1733438039401,0.584,95697.0,95323.0,0.00026]
[1733438039402,0.0457,95636.0,95364.0,1.01281775]
[1733438039604,0.1224,95617.0,95479.0,0.15]
[1733438039947,0.1957,95609.0,95347.0,1.01281775]
[1733438040139,0.0498,95597.0,95441.0,0.15]
[1733438040360,0.0767,95572.0,95397.0,0.049]
[1733438040593,0.0767,95572.0,95435.0,0.15]
[1733438040792,0.0767,95572.0,95397.0,0.049]
[1733438040925,0.0767,95572.0,95500.0,0.52207694]
[1733438041126,0.0767,95572.0,95500.0,0.51707694]
[1733438041333,0.15130793,95571.0,95500.0,0.51707694]
[1733438041542,0.02779194,95571.0,95500.0,0.51707694]
[1733438041749,0.00130789,95570.0,95500.0,0.51707694]
[1733438041921,0.0767,95572.0,95500.0,0.51707694]
[1733438041922,0.023,95571.0,95500.0,0.51707694]
[1733438042132,0.1496,95510.0,95331.0,0.0004]
[1733438042334,0.05213864,95482.0,95363.0,0.0481]
[1733438042579,0.05213864,95472.0,95363.0,0.02275289]
[1733438042782,0.75230916,95481.0,95315.0,6e-05]
[1733438042783,0.1496,95391.0,95315.0,6e-05]
[1733438042937,0.05399693,95418.0,95315.0,6e-05]
[1733438042938,0.05197964,95363.0,95315.0,6e-05]
[1733438043141,0.05125052,95357.0,95315.0,6e-05]
[1733438043391,0.00131085,95361.0,95315.0,6e-05]
[1733438043732,0.05125052,95346.0,95315.0,6e-05]
[1733438043920,0.1496,95331.0,95315.0,6e-05]
[1733438044153,0.20231095,95345.0,95152.0,0.0958]
[1733438044154,0.0527,95334.0,95202.0,0.03916235]
[1733438044366,0.10191961,95328.0,95205.0,0.15]
[1733438044510,0.10191961,95386.0,95236.0,0.15]
[1733438044854,0.05257682,95377.0,95259.0,0.15]
[1733438045130,0.05280952,95381.0,95260.0,0.00104854]
[1733438045306,0.0522395,95391.0,95276.0,0.0973]
[1733438045510,0.05248031,95435.0,95299.0,0.15]
[1733438045714,0.05202777,95425.0,95300.0,0.00104795]
[1733438045921,0.04037729,95446.0,95287.0,0.0481]
[1733438045922,0.05252219,95457.0,95303.0,0.15]
[1733438046134,1.16281775,95520.0,95301.0,1.05054794]
[1733438046135,0.00129578,95519.0,95350.0,0.208]
[1733438046289,0.00129578,95519.0,95325.0,1.837]
[1733438046290,0.00129578,95556.0,95444.0,0.0762]
[1733438046484,0.0951,95742.0,95434.0,0.208]
[1733438046485,0.10191961,95637.0,95467.0,0.1454]
[1733438046691,0.26958631,95653.0,95481.0,0.1243]
[1733438046893,0.05125052,95630.0,95482.0,0.00104557]
[1733438047094,0.10191961,95607.0,95483.0,0.00104582]
[1733438047345,0.05125052,95545.0,95482.0,0.0010461]
[1733438047554,0.10191961,95531.0,95434.0,0.15630022]
[1733438047750,0.10191961,95488.0,95434.0,0.15630022]
[1733438047957,0.15,95540.0,95434.0,0.15630022]
[1733438047958,0.10191961,95435.0,95434.0,0.15630022]
[1733438048163,0.10191961,95415.0,95294.0,0.0481]
[1733438048413,1.75296343,95415.0,95294.0,0.0481]
[1733438048612,6.29793066,95415.0,95414.0,1.81168959]
[1733438048822,1.39793066,95415.0,95414.0,1.73480967]
[1733438049034,1.34668014,95415.0,95414.0,0.98490967]
[1733438049176,0.36410592,95415.0,95414.0,0.98490967]
[1733438049512,0.0525064,95465.0,95414.0,0.98490967]
[1733438049819,0.15,95513.0,95414.0,0.98490967]
[1733438049820,0.05299051,95493.0,95415.0,0.00104775]
[1733438050140,0.05281208,95534.0,95417.0,0.0907]
[1733438050358,0.05254634,95532.0,95419.0,0.15]
[1733438050470,0.0522738,95571.0,95441.0,0.0481]
[1733438050673,0.00103208,95625.0,95497.0,0.0762]
[1733438050878,0.00103208,95663.0,95540.0,0.15]
[1733438051079,0.0498,95709.0,95563.0,0.0966]
[1733438051295,0.0498,95709.0,95576.0,0.15]
[1733438051525,0.15,95742.0,95601.0,0.15]
[1733438051730,0.0030973,95664.0,95603.0,0.0966]
[1733438051932,0.1599803,95698.0,95604.0,0.00053495]
[1733438052143,0.1599803,95698.0,95605.0,0.00053507]
[1733438052144,0.15,95673.0,95605.0,0.00053507]
[1733438052337,0.15,95687.0,95604.0,1.0033]
[1733438052634,4e-05,95695.0,95619.0,0.0545]
[1733438052803,0.34852356,95700.0,95620.0,3.09753477]
[1733438053103,0.32070591,95700.0,95621.0,0.02522716]
[1733438053262,0.11070591,95700.0,95626.0,0.0545]
[1733438053479,0.11070591,95700.0,95627.0,1.00383492]
[1733438053682,0.11070591,95700.0,95628.0,2.7497]
[1733438053889,0.11070591,95700.0,95629.0,0.00053488]
[1733438054198,0.11070591,95700.0,95630.0,0.00053499]
[1733438054778,0.03265378,95700.0,95630.0,0.00053499]
[1733438054996,0.03265378,95700.0,95661.0,0.0545]
[1733438055211,0.03265378,95700.0,95681.0,0.0481]
[1733438055468,0.03265378,95700.0,95690.0,0.0545]
[1733438055600,0.0017344,95760.0,95693.0,0.0545]
[1733438055797,0.0017344,95760.0,95694.0,0.00053287]
[1733438056027,0.0017344,95760.0,95695.0,0.00053272]
[1733438056228,0.0017344,95760.0,95690.0,0.0545]
[1733438056229,0.0017344,95760.0,95696.0,0.07673272]
[1733438056387,0.15,95746.0,95696.0,0.07673272]
[1733438056588,0.15,95725.0,95696.0,0.00053272]
[1733438056793,0.15,95715.0,95659.0,0.00053468]
[1733438057109,0.15,95706.0,95659.0,0.00053468]
[1733438057349,0.00130604,95753.0,95567.0,0.0762]
[1733438057350,0.15,95637.0,95567.0,0.0762]
[1733438057526,0.14564375,95657.0,95568.0,0.00053704]
[1733438057747,0.14564375,95618.0,95513.0,0.0481]
[1733438057907,0.14564375,95607.0,95514.0,0.4305]
[1733438058107,0.1254368,95598.0,95514.0,0.28287691]
[1733438058317,0.00130755,95606.0,95498.0,0.0933]
[1733438058318,0.17760087,95582.0,95498.0,0.0933]
[1733438058521,0.1775747,95603.0,95499.0,1.3195]
[1733438058739,0.0498,95622.0,95499.0,1.3195]
[1733438058740,0.05225363,95613.0,95500.0,0.264]
[1733438058953,0.05241163,95652.0,95525.0,0.055]
[1733438059154,0.1254368,95647.0,95542.0,0.1414]
[1733438059326,0.15,95681.0,95542.0,0.1414]
[1733438059327,0.01088143,95612.0,95558.0,0.055]
[1733438059532,0.01088143,95612.0,95559.0,5.0702]
[1733438059907,0.05417269,95651.0,95559.0,5.0702]
[1733438060046,0.05273736,95640.0,95559.0,3.1742]
[1733438060250,0.15,95689.0,95559.0,3.1742]
[1733438060251,0.00130698,95675.0,95640.0,0.02511161]
[1733438060435,0.1252748,95691.0,95629.0,0.264]
[1733438060630,0.1252748,95696.0,95629.0,0.264]
[1733438060885,0.1252748,95685.0,95629.0,0.264]
[1733438061086,0.0013066,95696.0,95629.0,0.264]
[1733438061292,0.0527607,95685.0,95629.0,0.264]
[1733438061453,0.1252748,95678.0,95629.0,0.264]
[1733438061640,0.05222819,95730.0,95629.0,0.3185]
[1733438061848,0.05222819,95730.0,95619.0,1.63]
[1733438061849,0.05232901,95698.0,95578.0,0.0939]
[1733438062075,0.05232901,95698.0,95576.0,0.0762]
[1733438062076,0.05223445,95679.0,95579.0,0.5345]
[1733438062473,0.05267525,95688.0,95582.0,0.261]
[1733438062662,0.1252748,95685.0,95592.0,0.0545]
[1733438062854,0.05207529,95684.0,95592.0,0.0545]
[1733438063056,0.05238774,95683.0,95590.0,0.00175601]
[1733438063207,0.05239937,95661.0,95583.0,2.0498]
[1733438063552,0.1252748,95653.0,95578.0,0.8368]
[1733438063702,0.05269348,95659.0,95578.0,0.8368]
[1733438063906,0.9926481,95956.0,95561.0,0.3938]
[1733438063907,0.1252748,95642.0,95561.0,0.3938]
[1733438064108,0.05217811,95657.0,95569.0,0.002]
[1733438064305,0.05217811,95657.0,95561.0,0.3938]
[1733438064306,0.05267525,95688.0,95579.0,0.002]
[1733438064588,0.05255121,95686.0,95580.0,4.6349]
[1733438064707,0.05207529,95684.0,95581.0,0.4846]
[1733438064915,0.05338177,95684.0,95581.0,0.4846]
[1733438065114,0.1252748,95686.0,95581.0,0.4846]
[1733438065115,0.05228025,95692.0,95601.0,0.002]
[1733438065370,0.0013064,95691.0,95602.0,5.0287]
[1733438065663,0.0013064,95691.0,95612.0,0.002]
[1733438065963,0.05253778,95697.0,95612.0,0.002]
[1733438066165,0.1252748,95673.0,95612.0,0.002]
[1733438066379,0.05202137,95651.0,95602.0,2.3389]
[1733438066596,0.1252748,95596.0,95500.0,0.0762]
[1733438066802,0.1252748,95596.0,95501.0,2.29201774]
[1733438067007,0.15,95643.0,95500.0,0.0762]
[1733438067008,0.1252748,95568.0,95500.0,0.0762]
[1733438067214,0.1252748,95515.0,95384.0,0.0247252]
[1733438067364,0.0771,95552.0,95124.0,0.05209379]
[1733438067365,0.05296807,95473.0,95336.0,0.0247252]
[1733438067566,0.1781994,95456.0,95326.0,0.0247252]
[1733438067766,0.1252748,95479.0,95346.0,0.0247252]
[1733438068051,0.30308359,95618.0,95583.0,1.08001048]
[1733438068250,0.05236093,95600.0,95430.0,0.15]
[1733438068421,0.05232054,95573.0,95431.0,0.00104701]
[1733438068639,1.39289129,95572.0,95431.0,0.00301226]
[1733438068802,0.83959033,95547.0,95431.0,0.00301226]
[1733438068980,0.58389129,95546.0,95431.0,0.00301226]
[1733438069318,0.00130498,95546.0,95447.0,0.15]
[1733438069625,0.83959033,95540.0,95448.0,0.00104691]
[1733438069768,0.83959033,95540.0,95431.0,0.00196525]
[1733438069769,0.83959033,95494.0,95432.0,0.00104742]
[1733438069966,0.83959033,95490.0,95431.0,0.00196525]
[1733438070296,0.05261919,95487.0,95431.0,0.00196525]
[1733438070498,0.00130498,95489.0,95431.0,0.00196525]
[1733438070499,0.05241171,95489.0,95432.0,0.00089748]
[1733438070705,0.31417,95487.0,95486.0,0.138796]
[1733438071076,0.05245612,95641.0,95567.0,0.138796]
[1733438071245,0.00317259,95725.0,95594.0,0.138796]
[1733438071246,0.05373471,95687.0,95594.0,0.138796]
[1733438071588,0.05373471,95687.0,95568.0,2.29454556]
[1733438071589,0.011204,95638.0,95500.0,0.138796]
[1733438071788,0.0498,95640.0,95437.0,0.138796]
[1733438071789,0.83959033,95590.0,95437.0,0.138796]
[1733438071978,0.83959033,95590.0,95432.0,1.3285]
[1733438071979,0.05248257,95568.0,95432.0,1.27705706]
[1733438072192,0.05219935,95501.0,95379.0,0.0923]
[1733438072525,0.052048,95474.0,95391.0,1.2785]
[1733438072704,0.05241122,95472.0,95380.0,2.5044]
[1733438072881,0.05203175,95470.0,95380.0,2.5044]
[1733438073085,0.05210518,95471.0,95380.0,2.5044]
[1733438073292,0.05210518,95471.0,95391.0,0.15]
[1733438073509,0.05210518,95471.0,95392.0,2.433]
[1733438073711,0.36577518,95471.0,95392.0,2.433]
[1733438073854,0.36577518,95471.0,95406.0,1.0445]
[1733438074061,0.05203175,95470.0,95407.0,2.5044]
[1733438074264,0.04286731,95499.0,95407.0,2.5044]
[1733438074265,0.05282821,95498.0,95407.0,2.5044]
[1733438074504,0.05293923,95507.0,95413.0,0.0923]
[1733438074711,0.05267937,95525.0,95422.0,0.15]
[1733438074866,0.05211879,95521.0,95421.0,0.15]
[1733438075069,0.05211879,95521.0,95414.0,3.0245]
[1733438075070,0.05226782,95519.0,95417.0,0.15]
[1733438075333,0.05245502,95517.0,95414.0,3.0245]
[1733438075538,0.05292506,95529.0,95427.0,1.0445]
[1733438075687,0.05268914,95527.0,95428.0,2.5044]
[1733438076014,0.05267937,95525.0,95428.0,2.6544]
[1733438076218,0.04286731,95530.0,95428.0,2.5044]
[1733438076439,0.05245442,95514.0,95428.0,2.5044]
[1733438076610,0.05299456,95512.0,95428.0,2.5044]
[1733438076808,0.05200892,95510.0,95428.0,2.5044]
[1733438077136,0.05291518,95540.0,95431.0,0.15187115]
[1733438077331,0.05276436,95538.0,95451.0,0.77675645]
[1733438077560,0.05258724,95536.0,95452.0,5.5289]
[1733438077754,0.0525776,95547.0,95474.0,0.77675645]
[1733438077992,0.05253041,95545.0,95475.0,2.2944]
[1733438078171,0.05247488,95543.0,95475.0,2.31357655]
[1733438078324,0.05279625,95532.0,95475.0,2.2944]
[1733438078528,0.05279625,95532.0,95449.0,0.0467]
[1733438078529,0.00130871,95531.0,95463.0,1.4554]
[1733438078747,0.01518227,95529.0,95463.0,1.4554]
[1733438078958,0.00130875,95528.0,95463.0,1.4554]
[1733438079164,0.0473,95594.0,95465.0,0.15]
[1733438079165,0.05238445,95563.0,95465.0,0.15]
[1733438079366,0.01518227,95576.0,95492.0,0.7755]
[1733438079534,0.00130812,95575.0,95493.0,4.9336]
[1733438079735,0.00304272,95590.0,95493.0,4.9286]
[1733438080021,0.0017346,95590.0,95493.0,4.9286]
[1733438080151,0.00304245,95590.0,95496.0,0.15]
[1733438080352,0.0017346,95590.0,95506.0,0.15]
[1733438080570,0.0017346,95590.0,95507.0,0.679]
[1733438080784,0.05219235,95588.0,95518.0,0.76835623]
[1733438081108,0.05202927,95565.0,95519.0,2.4981]
[1733438081399,0.05255891,95528.0,95389.0,0.075]
[1733438081571,0.05246888,95526.0,95416.0,0.7695]
[1733438081752,0.05211426,95522.0,95417.0,4.3454]
[1733438081959,0.05261362,95520.0,95417.0,4.3454]
[1733438082157,0.001732,95560.0,95424.0,0.002]
[1733438082158,0.0524716,95518.0,95424.0,0.002]
[1733438082355,0.05256784,95516.0,95425.0,1.2785]
[1733438082565,0.05221048,95514.0,95425.0,1.2785]
[1733438082931,0.05240254,95512.0,95425.0,1.2785]
[1733438083221,0.05203518,95510.0,95445.0,0.7695]
[1733438083382,0.05223798,95533.0,95446.0,5.0219]
[1733438083579,0.05212047,95531.0,95446.0,5.0219]
[1733438083778,0.05286504,95529.0,95452.0,0.002]
[1733438083980,0.05216042,95527.0,95452.0,0.002]
[1733438084164,0.02018227,95524.0,95446.0,5.0219]
[1733438084370,0.05203518,95510.0,95446.0,5.0219]
[1733438084568,0.05243079,95508.0,95446.0,5.0019]
[1733438084770,1.0,95543.0,95448.0,0.7685]
[1733438084771,0.05258534,95541.0,95448.0,0.7685]
[1733438085014,0.03277754,95539.0,95448.0,0.523]
[1733438085225,0.02018227,95510.0,95491.0,0.3]
[1733438085423,0.01990547,95531.0,95525.0,0.23611854]
[1733438085631,0.01990547,95531.0,95530.0,0.23611854]
[1733438086636,0.01990547,95531.0,95500.0,0.3]
[1733438086836,0.01990547,95531.0,95405.0,0.15]
[1733438087065,0.01990547,95531.0,95511.0,0.08437021]
[1733438087422,0.00130888,95530.0,95511.0,0.08437021]
[1733438087794,0.00130888,95530.0,95392.0,0.15]
[1733438087795,0.00130888,95530.0,95482.0,0.27547452]
[1733438088032,0.00130888,95530.0,95431.0,1.2725]
[1733438088234,0.023,95530.0,95432.0,0.00104735]
[1733438088389,0.00119298,95529.0,95457.0,0.18976252]
[1733438088826,0.023,95516.0,95435.0,0.18976252]
[1733438089063,0.023,95507.0,95421.0,0.18976252]
[1733438089246,0.141,95482.0,95382.0,0.18976252]
[1733438089454,0.023,95455.0,95382.0,0.18976252]
[1733438089626,0.0787,95453.0,95382.0,0.18976252]
[1733438090011,0.80832312,95337.0,95329.0,0.009]
[1733438090216,0.80832312,95337.0,95295.0,0.009]
[1733438090390,0.74042312,95337.0,95295.0,0.009]
[1733438090641,0.00131115,95336.0,95286.0,0.0248128]
[1733438090849,0.74042312,95337.0,95286.0,0.0248128]
[1733438091052,0.74042312,95337.0,95292.0,0.009]
[1733438091272,0.01272423,95336.0,95312.0,0.1805]
[1733438091476,0.01272423,95336.0,95313.0,2.3886]
[1733438091681,0.01272423,95336.0,95320.0,0.009]
[1733438091905,0.01272423,95336.0,95313.0,2.3886]
[1733438092320,0.01272423,95336.0,95303.0,0.1805]
[1733438092521,0.01272423,95336.0,95303.0,0.12802237]
[1733438092841,0.01372423,95336.0,95303.0,0.12802237]
[1733438092968,0.01472423,95336.0,95303.0,0.12802237]
[1733438093207,0.73814428,95337.0,95304.0,0.020104]
[1733438093436,0.00093014,95336.0,95304.0,0.01905504]
[1733438093633,0.73814428,95337.0,95305.0,0.00104918]
[1733438093835,0.73814428,95337.0,95308.0,0.009]
[1733438093998,0.73714428,95337.0,95311.0,0.009]
[1733438094211,0.73714428,95337.0,95312.0,1.31394885]
[1733438094412,0.001,95336.0,95313.0,1.514]
[1733438094658,0.001,95336.0,95314.0,0.00104878]
[1733438094908,0.001,95336.0,95318.0,0.009]
[1733438095099,0.0007,95334.0,95188.0,0.00253699]
[1733438095315,0.0007,95334.0,95220.0,0.52695105]
[1733438095316,0.03334754,95333.0,95220.0,0.52695105]
[1733438095440,0.03334754,95333.0,95221.0,3.11824963]
[1733438095644,0.0324174,95332.0,95233.0,0.7725]
[1733438095842,0.00093014,95331.0,95234.0,0.00104968]
[1733438096311,0.05251105,95329.0,95221.0,2.1338]
[1733438096530,0.023,95324.0,95225.0,0.237]
[1733438096736,0.023,95322.0,95226.0,0.00104977]
[1733438096940,0.05259351,95317.0,95227.0,0.00105005]
[1733438097143,0.05259351,95317.0,95213.0,1.136]
[1733438097144,0.05296271,95313.0,95214.0,0.00104983]
[1733438097296,0.023,95310.0,95215.0,0.00104979]
[1733438097500,0.07588298,95308.0,95226.0,0.263]
[1733438097717,0.023,95306.0,95227.0,0.84064432]
[1733438097928,0.023,95304.0,95228.0,1.165]
[1733438098125,0.023,95302.0,95215.0,0.078]
[1733438098328,0.023,95218.0,95136.0,0.0452]
[1733438098551,0.05275787,95239.0,95137.0,0.08164647]
[1733438098552,0.00131331,95217.0,95137.0,0.08164647]
[1733438098895,0.15,95232.0,95137.0,0.081]
[1733438099110,0.05398542,95231.0,95137.0,0.081]
[1733438099326,0.05299563,95259.0,95138.0,0.00105091]
[1733438099542,0.002,95304.0,95138.0,0.00105091]
[1733438099543,0.0521843,95296.0,95169.0,0.06668507]
[1733438099752,0.04967206,95312.0,95189.0,0.00105037]
[1733438099895,0.65885393,95337.0,95189.0,0.00105037]
[1733438099896,1.09859033,95327.0,95189.0,0.00105037]
[1733438100105,0.58109464,95337.0,95189.0,0.00105037]
[1733438100106,0.05213786,95313.0,95189.0,0.00105037]
[1733438100308,0.05235237,95336.0,95218.0,0.02615334]
[1733438100538,0.42828705,95337.0,95247.0,0.0452]
[1733438100734,0.25300344,95337.0,95252.0,0.02115334]
[1733438101107,0.05240403,95336.0,95247.0,0.0452]
[1733438101307,0.71329438,95328.0,95196.0,0.0452]
[1733438101506,0.12884666,95281.0,95189.0,0.009]
[1733438101771,0.12884666,95283.0,95188.0,0.01153699]
[1733438102073,0.12884666,95267.0,95188.0,0.01153699]
[1733438102288,0.5346,95326.0,95188.0,0.00253699]
[1733438102502,0.56141591,95208.0,95158.0,0.04495169]
[1733438102694,0.53082807,95208.0,95196.0,0.009]
[1733438102958,0.39955516,95208.0,95196.0,0.009]
[1733438103170,0.37812863,95208.0,95197.0,0.01997731]
[1733438103342,0.37812863,95208.0,95158.0,0.04495169]
[1733438103574,0.37812863,95208.0,95188.0,0.009]
[1733438103889,0.37812863,95208.0,95191.0,0.009]
[1733438104125,0.05240938,95265.0,95188.0,0.009]
[1733438104352,0.0526009,95265.0,95197.0,0.009]
[1733438104548,0.05213984,95265.0,95197.0,0.009]
[1733438105206,0.05271152,95265.0,95264.0,3e-08]
[1733438105403,0.05271152,95265.0,95158.0,0.01088641]
[1733438105609,0.05264415,95263.0,95197.0,0.009]
[1733438105815,0.05239477,95245.0,95197.0,0.009]
[1733438106016,0.05252155,95239.0,95197.0,0.018]
[1733438106223,1.16235129,95258.0,95102.0,0.082]
[1733438106224,0.71329438,95236.0,95102.0,0.082]
[1733438106428,0.5346,95229.0,95102.0,0.082]
[1733438106629,0.0912,95228.0,95102.0,0.082]
[1733438106832,0.5346,95227.0,95102.0,0.082]
[1733438107047,0.5346,95227.0,95226.0,0.10503154]
[1733438107250,0.0912,95228.0,95226.0,0.10503154]
[1733438107452,0.0912,95228.0,95227.0,0.10503154]
[1733438107659,1.0656,95228.0,95072.0,0.15]
[1733438107870,0.76190385,95190.0,95073.0,0.00105148]
[1733438108091,0.76190385,95190.0,95056.0,0.08184849]
[1733438108092,0.0010515,95189.0,95056.0,0.08184849]
[1733438108306,0.0010515,95189.0,94962.0,0.0906]
[1733438108307,0.61069207,95058.0,95034.0,0.0459]
[1733438108515,1.71015652,95057.0,95034.0,0.0459]
[1733438108722,1.71554894,95057.0,95034.0,0.0459]
[1733438108932,1.96446,95056.0,94958.0,0.05402206]
[1733438109148,1.96446,95056.0,94814.0,0.06221057]
[1733438109149,3.54997107,95016.0,94997.0,0.0459]
[1733438109364,3.81122799,95015.0,94998.0,0.7373]
[1733438109572,2.75740749,95014.0,94998.0,0.7373]
[1733438109775,2.75740749,95013.0,94957.0,0.0707128]
[1733438109998,1.13842576,94962.0,94957.0,0.0607128]
[1733438110271,2.75527846,94961.0,94958.0,1.617]
[1733438110463,1.07974311,94960.0,94958.0,0.44079629]
[1733438110672,3.93130846,94959.0,94957.0,0.0607128]
[1733438110871,1.53599862,94958.0,94957.0,0.0148128]
[1733438111075,5.01771787,94958.0,94957.0,0.0148128]
[1733438111275,0.09597794,94942.0,94897.0,0.0459]
[1733438111613,0.56623971,94900.0,94897.0,0.0459]
[1733438111840,4.04557077,94899.0,94897.0,0.0459]
[1733438112058,4.04557077,94899.0,94799.0,0.10678987]
[1733438112059,0.09597794,94874.0,94850.0,0.0459]
[1733438112263,4.30674068,94873.0,94794.0,0.05249973]
[1733438112464,1.660028,94872.0,94795.0,1.77541426]
[1733438112665,4.22989323,94871.0,94795.0,0.00936883]
[1733438112869,1.76283895,94796.0,94795.0,0.0093688]
[1733438113096,3.38574131,94870.0,94796.0,0.05211047]
[1733438113314,0.98133582,94812.0,94802.0,0.78]
[1733438113517,0.72923596,94807.0,94803.0,1.1415]
[1733438113727,0.5346,94927.0,94796.0,0.05211047]
[1733438113728,1.57033933,94806.0,94796.0,0.05211047]
[1733438113929,0.72920088,94804.0,94799.0,0.9235]
[1733438114139,0.6505879,94803.0,94799.0,0.9235]
[1733438114343,0.75972635,94804.0,94800.0,0.10489492]
[1733438114518,0.09235343,94803.0,94800.0,0.10489492]
[1733438114770,0.09235343,94803.0,94800.0,0.09989492]
[1733438114977,0.09235343,94803.0,94796.0,0.05211047]
[1733438114978,3.30798245,94802.0,94796.0,0.05211047]
[1733438115183,0.01055,94803.0,94796.0,0.05211047]
[1733438115184,3.30692846,94801.0,94796.0,0.05211047]
[1733438115316,0.00105399,94800.0,94796.0,0.05211047]
[1733438115720,0.00105399,94823.0,94797.0,0.05289405]
[1733438115926,3.06570936,94822.0,94765.0,0.05281463]
[1733438116125,2.22728166,94821.0,94780.0,0.05236849]
[1733438116351,1.50269256,94820.0,94782.0,0.05200908]
[1733438116603,0.0802,94870.0,94785.0,0.023]
[1733438116604,0.32432558,94792.0,94785.0,0.023]
[1733438116762,0.05337952,94796.0,94786.0,0.0010549]
[1733438116956,0.01055,94792.0,94785.0,0.023]
[1733438117160,0.95798645,94791.0,94781.0,0.05266612]
[1733438117362,0.01055,94791.0,94766.0,0.9239]
[1733438117565,0.01055,94791.0,94764.0,0.05755298]
[1733438117805,0.05017807,94805.0,94764.0,0.05755298]
[1733438117991,0.03909987,94805.0,94721.0,0.05297366]
[1733438118199,0.03909987,94805.0,94522.0,1.01281775]
[1733438118200,0.39424103,94722.0,94654.0,0.11090013]
[1733438118395,0.09112905,94715.0,94589.0,0.11090013]
[1733438118559,0.05207953,94686.0,94604.0,0.00105652]
[1733438118765,0.03909987,94687.0,94537.0,0.0803]
[1733438118766,0.03869987,94656.0,94627.0,0.00018064]
[1733438119009,0.03869987,94656.0,94563.0,0.15]